[Event "Late-Titled-Tuesday-Blitz-June-18-2024"]
[Site "Chess.com"]
[Date "2024.06.18"]
[Round "4"]
[White "YouShallNotPass001"]
[Black "Juandiv_Chessmood"]
[Result "1-0"]
[WhiteElo "2437"]
[BlackElo "1455"]
[TimeControl "180+1"]
[EndTime "14:37:33 PDT"]
[Termination "YouShallNotPass001 won by resignation"]

1. Nf3 {[%clk 0:03:00.9]} 1... c5 {[%clk 0:02:45.2]} 2. e3 {[%clk 0:03:01.5]}
2... g6 {[%clk 0:02:45.2]} 3. d4 {[%clk 0:03:02.4]} 3... Bg7 {[%clk 0:02:46.1]}
4. dxc5 {[%clk 0:03:00.6]} 4... Nf6 {[%clk 0:02:45.3]} 5. c3 {[%clk 0:02:59.9]}
5... Ne4 {[%clk 0:02:44.4]} 6. Qd5 {[%clk 0:02:58.3]} 6... Nf6 {[%clk
0:02:41.2]} 7. Qd1 {[%clk 0:02:57.5]} 7... Ne4 {[%clk 0:02:41.3]} 8. Qd5 {[%clk
0:02:57]} 8... Nf6 {[%clk 0:02:41.6]} 9. Qc4 {[%clk 0:02:52.3]} 9... Qc7 {[%clk
0:02:35.4]} 10. Be2 {[%clk 0:02:49]} 10... d6 {[%clk 0:02:29.9]} 11. cxd6 {[%clk
0:02:46.1]} 11... Qxc4 {[%clk 0:02:25.5]} 12. Bxc4 {[%clk 0:02:47]} 12... exd6
{[%clk 0:02:25]} 13. O-O {[%clk 0:02:43.3]} 13... O-O {[%clk 0:01:47.8]} 14. Na3
{[%clk 0:02:41.3]} 14... d5 {[%clk 0:01:42.7]} 15. Be2 {[%clk 0:02:39.4]} 15...
Nc6 {[%clk 0:01:37.2]} 16. Rd1 {[%clk 0:02:32.4]} 16... Be6 {[%clk 0:01:21.8]}
17. Nb5 {[%clk 0:02:30.2]} 17... a6 {[%clk 0:01:19.3]} 18. Nc7 {[%clk
0:02:29.6]} 1-0

[Event "Late-Titled-Tuesday-Blitz-June-18-2024"]
[Site "Chess.com"]
[Date "2024.06.18"]
[Round "4"]
[White "Mysterio47"]
[Black "IMJonathanCarlstedt"]
[Result "1-0"]
[WhiteElo "2844"]
[BlackElo "2600"]
[TimeControl "180+1"]
[EndTime "14:38:07 PDT"]
[Termination "Mysterio47 won by resignation"]

1. e4 {[%clk 0:03:00.9]} 1... g6 {[%clk 0:02:52.8]} 2. d4 {[%clk 0:03:00.7]}
2... Bg7 {[%clk 0:02:52.8]} 3. Nc3 {[%clk 0:03:01]} 3... d6 {[%clk 0:02:50.9]}
4. Be3 {[%clk 0:03:01.3]} 4... a6 {[%clk 0:02:46.6]} 5. g4 {[%clk 0:03:01.8]}
5... b5 {[%clk 0:02:41.2]} 6. h4 {[%clk 0:03:02.2]} 6... Bb7 {[%clk 0:02:38.5]}
7. Bg2 {[%clk 0:03:02.4]} 7... Nf6 {[%clk 0:02:33.5]} 8. g5 {[%clk 0:02:59.8]}
8... Nh5 {[%clk 0:02:33.1]} 9. Bf3 {[%clk 0:02:58.3]} 9... b4 {[%clk 0:02:31.1]}
10. Nce2 {[%clk 0:02:58]} 10... Nd7 {[%clk 0:02:26.5]} 11. Bxh5 {[%clk 0:02:57]}
11... gxh5 {[%clk 0:02:27.3]} 12. Ng3 {[%clk 0:02:57.5]} 12... c5 {[%clk
0:02:16.8]} 13. Nxh5 {[%clk 0:02:47]} 13... Bxd4 {[%clk 0:02:15.6]} 14. Bxd4
{[%clk 0:02:46.9]} 14... cxd4 {[%clk 0:02:15.3]} 15. Qxd4 {[%clk 0:02:45.8]}
15... Rg8 {[%clk 0:02:15.5]} 16. Ne2 {[%clk 0:02:40]} 16... Ne5 {[%clk
0:02:12.1]} 17. O-O-O {[%clk 0:02:39.6]} 17... Qa5 {[%clk 0:02:09.3]} 18. Kb1
{[%clk 0:02:38.7]} 18... Rc8 {[%clk 0:02:04.8]} 19. b3 {[%clk 0:02:39.1]} 19...
Qc5 {[%clk 0:02:01.5]} 20. f4 {[%clk 0:02:36.2]} 20... Nf3 {[%clk 0:01:54.1]}
21. Qxc5 {[%clk 0:02:33.2]} 21... Rxc5 {[%clk 0:01:51.7]} 22. Nhg3 {[%clk
0:02:27]} 22... a5 {[%clk 0:01:49.2]} 23. Rd3 {[%clk 0:02:22.7]} 23... f5 {[%clk
0:01:18.2]} 24. Rxf3 {[%clk 0:02:18.3]} 24... fxe4 {[%clk 0:01:18.1]} 25. Re3
{[%clk 0:02:18.6]} 25... d5 {[%clk 0:01:18.7]} 26. Nd4 {[%clk 0:02:18.3]} 26...
Rf8 {[%clk 0:01:15]} 27. Ne6 {[%clk 0:02:17.8]} 1-0

[Event "Late-Titled-Tuesday-Blitz-June-18-2024"]
[Site "Chess.com"]
[Date "2024.06.18"]
[Round "4"]
[White "MYMChessAcademy"]
[Black "vesalhamedinia"]
[Result "0-1"]
[WhiteElo "2212"]
[BlackElo "2480"]
[TimeControl "180+1"]
[EndTime "14:38:41 PDT"]
[Termination "vesalhamedinia won by checkmate"]

1. e4 {[%clk 0:03:00.9]} 1... c5 {[%clk 0:03:00.1]} 2. Nf3 {[%clk 0:02:51.1]}
2... Nc6 {[%clk 0:03:00.1]} 3. d4 {[%clk 0:02:49.8]} 3... cxd4 {[%clk 0:03:01]}
4. Nxd4 {[%clk 0:02:49.1]} 4... Nf6 {[%clk 0:03:01.7]} 5. Nc3 {[%clk 0:02:47.8]}
5... e5 {[%clk 0:03:01.4]} 6. Ndb5 {[%clk 0:02:47]} 6... d6 {[%clk 0:03:01.5]}
7. Bg5 {[%clk 0:02:45.6]} 7... a6 {[%clk 0:03:01.2]} 8. Na3 {[%clk 0:02:44.4]}
8... b5 {[%clk 0:03:00.6]} 9. Nd5 {[%clk 0:02:40.7]} 9... Be7 {[%clk 0:03:00.4]}
10. Bxf6 {[%clk 0:02:38.1]} 10... Bxf6 {[%clk 0:03:01.3]} 11. c3 {[%clk
0:02:36.4]} 11... O-O {[%clk 0:03:00.9]} 12. Nc2 {[%clk 0:02:32]} 12... Rb8
{[%clk 0:03:01.1]} 13. a4 {[%clk 0:02:30.1]} 13... bxa4 {[%clk 0:03:00.6]} 14.
Ncb4 {[%clk 0:02:27.7]} 14... Bd7 {[%clk 0:02:59.9]} 15. Bd3 {[%clk 0:02:23.1]}
15... Bg5 {[%clk 0:02:58.8]} 16. h4 {[%clk 0:02:18.4]} 16... Bh6 {[%clk
0:02:57.1]} 17. Qf3 {[%clk 0:02:07.2]} 17... a5 {[%clk 0:02:52.8]} 18. g4 {[%clk
0:02:01.3]} 18... axb4 {[%clk 0:02:30.5]} 19. cxb4 {[%clk 0:01:54.5]} 19... Nxb4
{[%clk 0:02:25.7]} 20. Nxb4 {[%clk 0:01:52.7]} 20... Rxb4 {[%clk 0:02:26.6]} 21.
g5 {[%clk 0:01:49.4]} 21... Bxg5 {[%clk 0:02:26.9]} 22. hxg5 {[%clk 0:01:47.6]}
22... Qxg5 {[%clk 0:02:27.8]} 23. Qh5 {[%clk 0:01:40.8]} 23... Qxh5 {[%clk
0:02:25]} 24. Rxh5 {[%clk 0:01:41.7]} 24... Rxb2 {[%clk 0:02:24.5]} 25. O-O-O
{[%clk 0:01:37.7]} 25... a3 {[%clk 0:02:16.6]} 26. Bc4 {[%clk 0:01:36.1]} 26...
Rc8 {[%clk 0:02:14.7]} 27. Rh3 {[%clk 0:01:29.7]} 27... Bxh3 {[%clk 0:02:12.1]}
28. Rd3 {[%clk 0:01:28.1]} 28... Rxc4+ {[%clk 0:02:04.5]} 29. Kd1 {[%clk
0:01:27.3]} 29... Bg4+ {[%clk 0:02:03.5]} 30. f3 {[%clk 0:01:26.2]} 30... Be6
{[%clk 0:02:03.5]} 31. Rxa3 {[%clk 0:01:25]} 31... h5 {[%clk 0:02:03.6]} 32.
Ra8+ {[%clk 0:01:23.6]} 32... Kh7 {[%clk 0:02:02.9]} 33. Rd8 {[%clk 0:01:24.5]}
33... Ra4 {[%clk 0:01:59.7]} 34. Kc1 {[%clk 0:01:19.5]} 34... Rf2 {[%clk
0:01:59.2]} 35. Rxd6 {[%clk 0:01:18.3]} 35... Ra1# {[%clk 0:01:58.6]} 0-1

[Event "Late-Titled-Tuesday-Blitz-June-18-2024"]
[Site "Chess.com"]
[Date "2024.06.18"]
[Round "4"]
[White "XDPS"]
[Black "mishanick"]
[Result "0-1"]
[WhiteElo "2894"]
[BlackElo "3141"]
[TimeControl "180+1"]
[EndTime "14:38:43 PDT"]
[Termination "mishanick won by resignation"]

1. d4 {[%clk 0:03:00.9]} 1... Nf6 {[%clk 0:02:59.7]} 2. Nf3 {[%clk 0:03:01.8]}
2... d5 {[%clk 0:02:59.8]} 3. Bf4 {[%clk 0:03:02.2]} 3... c5 {[%clk 0:02:59.3]}
4. c3 {[%clk 0:03:02.5]} 4... Nc6 {[%clk 0:02:58.4]} 5. dxc5 {[%clk 0:03:00.2]}
5... a5 {[%clk 0:02:55.1]} 6. e3 {[%clk 0:02:43.6]} 6... e6 {[%clk 0:02:54]} 7.
Bb5 {[%clk 0:02:40]} 7... Bxc5 {[%clk 0:02:53.9]} 8. Ne5 {[%clk 0:02:38.4]} 8...
Qb6 {[%clk 0:02:52]} 9. Qb3 {[%clk 0:02:26.2]} 9... O-O {[%clk 0:02:40.9]} 10.
Nd2 {[%clk 0:02:20.9]} 10... Nh5 {[%clk 0:02:32.2]} 11. Bxc6 {[%clk 0:02:12.9]}
11... Nxf4 {[%clk 0:02:27.1]} 12. Qxb6 {[%clk 0:02:11.2]} 12... Nxg2+ {[%clk
0:02:25.1]} 13. Kf1 {[%clk 0:02:11.2]} 13... Bxb6 {[%clk 0:02:23.4]} 14. Bxd5
{[%clk 0:02:05.1]} 14... Nxe3+ {[%clk 0:02:22.7]} 15. fxe3 {[%clk 0:02:04.5]}
15... exd5 {[%clk 0:02:23.6]} 16. e4 {[%clk 0:01:48]} 16... Re8 {[%clk
0:02:20.1]} 17. Nef3 {[%clk 0:01:34.5]} 17... dxe4 {[%clk 0:02:19.2]} 18. Nd4
{[%clk 0:01:35.1]} 18... Bh3+ {[%clk 0:02:11.6]} 19. Ke2 {[%clk 0:01:35.4]}
19... Rad8 {[%clk 0:02:12]} 20. Ke3 {[%clk 0:01:33.8]} 20... f5 {[%clk
0:02:07.1]} 21. Nc4 {[%clk 0:01:33.7]} 21... Bc7 {[%clk 0:02:07]} 22. Rag1
{[%clk 0:01:25.6]} 22... f4+ {[%clk 0:02:07.2]} 23. Ke2 {[%clk 0:01:26.2]} 23...
h5 {[%clk 0:02:01.6]} 24. Rg5 {[%clk 0:01:24.6]} 24... Bg4+ {[%clk 0:02:01]} 25.
Ke1 {[%clk 0:01:25.2]} 25... f3 {[%clk 0:01:55.4]} 26. h3 {[%clk 0:01:15.4]}
26... Bg3+ {[%clk 0:01:52.9]} 27. Kf1 {[%clk 0:01:14.8]} 27... e3 {[%clk
0:01:50.4]} 0-1

[Event "Late-Titled-Tuesday-Blitz-June-18-2024"]
[Site "Chess.com"]
[Date "2024.06.18"]
[Round "4"]
[White "Patricius007"]
[Black "GMAneta"]
[Result "1-0"]
[WhiteElo "2562"]
[BlackElo "2361"]
[TimeControl "180+1"]
[EndTime "14:38:44 PDT"]
[Termination "Patricius007 won by checkmate"]

1. Nf3 {[%clk 0:03:00.9]} 1... Nf6 {[%clk 0:02:57.2]} 2. g3 {[%clk 0:03:01.2]}
2... d5 {[%clk 0:02:56.9]} 3. Bg2 {[%clk 0:03:01.3]} 3... g6 {[%clk 0:02:57.3]}
4. O-O {[%clk 0:03:01.9]} 4... Bg7 {[%clk 0:02:58.2]} 5. d4 {[%clk 0:03:02.1]}
5... O-O {[%clk 0:02:58.2]} 6. c4 {[%clk 0:03:02.7]} 6... dxc4 {[%clk
0:02:56.7]} 7. Na3 {[%clk 0:02:59.7]} 7... Nc6 {[%clk 0:02:56.7]} 8. Nxc4 {[%clk
0:02:59.7]} 8... Be6 {[%clk 0:02:56.3]} 9. Nce5 {[%clk 0:02:58.8]} 9... Bd5
{[%clk 0:02:55.9]} 10. e3 {[%clk 0:02:57.7]} 10... a5 {[%clk 0:02:52.2]} 11. Bd2
{[%clk 0:02:57.3]} 11... Nxe5 {[%clk 0:02:51.7]} 12. Nxe5 {[%clk 0:02:57.1]}
12... Bxg2 {[%clk 0:02:51.1]} 13. Kxg2 {[%clk 0:02:58]} 13... c6 {[%clk
0:02:51.3]} 14. Qf3 {[%clk 0:02:57.7]} 14... Nd7 {[%clk 0:02:49.8]} 15. Nxd7
{[%clk 0:02:57.7]} 15... Qxd7 {[%clk 0:02:50.7]} 16. Rab1 {[%clk 0:02:55.8]}
16... e6 {[%clk 0:02:47.8]} 17. a3 {[%clk 0:02:54.1]} 17... Qd5 {[%clk
0:02:47.8]} 18. b4 {[%clk 0:02:53.8]} 18... axb4 {[%clk 0:02:47.4]} 19. Bxb4
{[%clk 0:02:54.5]} 19... Rfd8 {[%clk 0:02:44.3]} 20. Bc5 {[%clk 0:02:49.5]}
20... Rd7 {[%clk 0:02:44.1]} 21. Qxd5 {[%clk 0:02:47.3]} 21... exd5 {[%clk
0:02:42.2]} 22. Rb3 {[%clk 0:02:47.8]} 22... Bf8 {[%clk 0:02:41.5]} 23. Bxf8
{[%clk 0:02:44.3]} 23... Kxf8 {[%clk 0:02:41.3]} 24. Rfb1 {[%clk 0:02:45.2]}
24... b5 {[%clk 0:02:40.7]} 25. Rc3 {[%clk 0:02:44.7]} 25... Ra6 {[%clk
0:02:40.3]} 26. Kf3 {[%clk 0:02:37.8]} 26... Ke7 {[%clk 0:02:39.9]} 27. Kf4
{[%clk 0:02:37]} 27... Kd6 {[%clk 0:02:39.5]} 28. h4 {[%clk 0:02:35.9]} 28... f6
{[%clk 0:02:39.2]} 29. g4 {[%clk 0:02:35.8]} 29... Rda7 {[%clk 0:02:38.5]} 30.
Rbb3 {[%clk 0:02:36]} 30... Re7 {[%clk 0:02:32.8]} 31. f3 {[%clk 0:02:34.1]}
31... Ra4 {[%clk 0:02:30]} 32. g5 {[%clk 0:02:29.6]} 32... fxg5+ {[%clk
0:02:24.9]} 33. hxg5 {[%clk 0:02:28.8]} 33... Rc4 {[%clk 0:02:23.7]} 34. Kg3
{[%clk 0:02:24.6]} 34... Rf7 {[%clk 0:02:17.6]} 35. f4 {[%clk 0:02:24.2]} 35...
Ke6 {[%clk 0:02:17.4]} 36. Kg4 {[%clk 0:02:23.1]} 36... Ra7 {[%clk 0:02:13.9]}
37. Rd3 {[%clk 0:02:11.8]} 37... Rc1 {[%clk 0:02:10.4]} 38. Rd2 {[%clk
0:02:09.2]} 38... Rg1+ {[%clk 0:02:06.7]} 39. Kf3 {[%clk 0:02:09]} 39... Kf5
{[%clk 0:02:07]} 40. Rc2 {[%clk 0:02:06.6]} 40... Ra6 {[%clk 0:02:03.1]} 41.
Rbc3 {[%clk 0:02:06.5]} 41... Rf1+ {[%clk 0:01:59.2]} 42. Ke2 {[%clk 0:02:00.6]}
42... Ra1 {[%clk 0:01:57.7]} 43. Rxc6 {[%clk 0:01:55.3]} 43... Rxc6 {[%clk
0:01:56.5]} 44. Rxc6 {[%clk 0:01:56.2]} 44... Rxa3 {[%clk 0:01:56.4]} 45. Rb6
{[%clk 0:01:49.4]} 45... Rb3 {[%clk 0:01:53]} 46. Kf3 {[%clk 0:01:47.6]} 46...
b4 {[%clk 0:01:52.5]} 47. Rf6# {[%clk 0:01:47.2]} 1-0

[Event "Late-Titled-Tuesday-Blitz-June-18-2024"]
[Site "Chess.com"]
[Date "2024.06.18"]
[Round "4"]
[White "Renatoforf"]
[Black "Zampronha1971"]
[Result "1/2-1/2"]
[WhiteElo "2124"]
[BlackElo "2398"]
[TimeControl "180+1"]
[EndTime "14:39:03 PDT"]
[Termination "Game drawn by agreement"]

1. e4 {[%clk 0:03:00.9]} 1... c5 {[%clk 0:02:59.3]} 2. Nc3 {[%clk 0:02:58.8]}
2... Nc6 {[%clk 0:02:58.5]} 3. Nge2 {[%clk 0:02:58.9]} 3... e6 {[%clk
0:02:58.7]} 4. g3 {[%clk 0:02:55.6]} 4... Nf6 {[%clk 0:02:57.6]} 5. Bg2 {[%clk
0:02:55.5]} 5... d5 {[%clk 0:02:58.2]} 6. exd5 {[%clk 0:02:53.7]} 6... exd5
{[%clk 0:02:58.4]} 7. O-O {[%clk 0:02:52.6]} 7... d4 {[%clk 0:02:58]} 8. Ne4
{[%clk 0:02:50.1]} 8... Nxe4 {[%clk 0:02:58.5]} 9. Bxe4 {[%clk 0:02:48.9]} 9...
Bh3 {[%clk 0:02:55.3]} 10. Re1 {[%clk 0:02:48.2]} 10... Be7 {[%clk 0:02:55.3]}
11. d3 {[%clk 0:02:46.2]} 11... Bg4 {[%clk 0:02:53.4]} 12. Qd2 {[%clk
0:02:42.6]} 12... O-O {[%clk 0:02:51.7]} 13. Qf4 {[%clk 0:02:39.9]} 13... Be6
{[%clk 0:02:48.9]} 14. Bg2 {[%clk 0:02:38.2]} 14... Bd6 {[%clk 0:02:47.7]} 15.
Qd2 {[%clk 0:02:36.5]} 15... Re8 {[%clk 0:02:43.9]} 16. a3 {[%clk 0:02:35.6]}
16... Qd7 {[%clk 0:02:41]} 17. Nf4 {[%clk 0:02:33.1]} 17... Bf5 {[%clk
0:02:38.2]} 18. Rxe8+ {[%clk 0:02:28.4]} 18... Rxe8 {[%clk 0:02:36.7]} 19. Qd1
{[%clk 0:02:27.1]} 19... Bg4 {[%clk 0:02:29.2]} 20. f3 {[%clk 0:02:22.6]} 20...
Bf5 {[%clk 0:02:26.1]} 21. Bd2 {[%clk 0:02:23.1]} 21... Ne5 {[%clk 0:02:17.2]}
22. Qf1 {[%clk 0:02:20.9]} 22... b5 {[%clk 0:02:14.3]} 23. Re1 {[%clk
0:02:18.7]} 23... c4 {[%clk 0:02:13.2]} 24. g4 {[%clk 0:02:08.1]} 24... Bg6
{[%clk 0:02:06.5]} 25. Nxg6 {[%clk 0:02:06.4]} 25... hxg6 {[%clk 0:02:04.2]} 26.
h3 {[%clk 0:01:59.8]} 26... cxd3 {[%clk 0:01:48.4]} 27. cxd3 {[%clk 0:01:58.7]}
27... f6 {[%clk 0:01:42.3]} 28. f4 {[%clk 0:01:56.6]} 28... Nf7 {[%clk
0:01:42.9]} 29. Rxe8+ {[%clk 0:01:47.1]} 29... Qxe8 {[%clk 0:01:43.8]} 30. Qe1
{[%clk 0:01:46.8]} 30... Qxe1+ {[%clk 0:01:42.2]} 31. Bxe1 {[%clk 0:01:45.8]}
31... Bxf4 {[%clk 0:01:42.7]} 32. Bc6 {[%clk 0:01:45.2]} 32... Nd6 {[%clk
0:01:42.1]} 33. Bb4 {[%clk 0:01:43]} 33... Kf7 {[%clk 0:01:33]} 34. Bxd6 {[%clk
0:01:42.2]} 34... Bxd6 {[%clk 0:01:33.1]} 35. Bxb5 {[%clk 0:01:42.4]} 35... Ke6
{[%clk 0:01:30.9]} 36. Kg2 {[%clk 0:01:41.3]} 36... Ke5 {[%clk 0:01:30.6]} 37.
Kf3 {[%clk 0:01:40.5]} 37... g5 {[%clk 0:01:26.4]} 38. Bd7 {[%clk 0:01:37.7]}
38... Bc5 {[%clk 0:01:23.5]} 1/2-1/2

[Event "Late-Titled-Tuesday-Blitz-June-18-2024"]
[Site "Chess.com"]
[Date "2024.06.18"]
[Round "4"]
[White "BerlinDrawer"]
[Black "tactic"]
[Result "1-0"]
[WhiteElo "2580"]
[BlackElo "2743"]
[TimeControl "180+1"]
[EndTime "14:39:07 PDT"]
[Termination "BerlinDrawer won by resignation"]

1. e4 {[%clk 0:03:00.9]} 1... d5 {[%clk 0:03:00.2]} 2. exd5 {[%clk 0:03:00.2]}
2... c6 {[%clk 0:03:01.1]} 3. dxc6 {[%clk 0:02:59.7]} 3... Nxc6 {[%clk 0:03:02]}
4. Nc3 {[%clk 0:02:44.3]} 4... e5 {[%clk 0:03:02.3]} 5. Bb5 {[%clk 0:02:41.7]}
5... Bd6 {[%clk 0:03:01.6]} 6. Nf3 {[%clk 0:02:41.1]} 6... Nf6 {[%clk
0:03:02.3]} 7. d4 {[%clk 0:02:36.7]} 7... exd4 {[%clk 0:03:02.4]} 8. Nxd4 {[%clk
0:02:33.2]} 8... O-O {[%clk 0:03:00.9]} 9. Be3 {[%clk 0:02:29.1]} 9... Ne5
{[%clk 0:02:53.3]} 10. h3 {[%clk 0:02:25.1]} 10... a6 {[%clk 0:02:52.1]} 11. Be2
{[%clk 0:02:23.7]} 11... b5 {[%clk 0:02:52.8]} 12. Nf3 {[%clk 0:02:19]} 12...
Qc7 {[%clk 0:02:48]} 13. O-O {[%clk 0:02:13.4]} 13... Bb7 {[%clk 0:02:46.4]} 14.
Nxe5 {[%clk 0:02:09.1]} 14... Bxe5 {[%clk 0:02:47.3]} 15. Bf3 {[%clk 0:02:07.5]}
15... Bxf3 {[%clk 0:02:38.3]} 16. Qxf3 {[%clk 0:02:07]} 16... Bxc3 {[%clk
0:02:38.8]} 17. bxc3 {[%clk 0:02:03.6]} 17... Qxc3 {[%clk 0:02:39.7]} 18. Rad1
{[%clk 0:01:51.5]} 18... Qxc2 {[%clk 0:02:33.1]} 19. Bd4 {[%clk 0:01:51]} 19...
Qe4 {[%clk 0:02:18.3]} 20. Qb3 {[%clk 0:01:42.8]} 20... Qf5 {[%clk 0:02:04.8]}
21. Rd3 {[%clk 0:01:37.6]} 21... Ne4 {[%clk 0:01:53.9]} 22. Qb2 {[%clk
0:01:33.7]} 22... Rfd8 {[%clk 0:01:51.7]} 23. Rf3 {[%clk 0:01:28.8]} 23... Qg6
{[%clk 0:01:51.7]} 24. Re1 {[%clk 0:01:27.1]} 24... f5 {[%clk 0:01:46.7]} 25.
Rxe4 {[%clk 0:01:15.7]} 25... fxe4 {[%clk 0:01:47.6]} 26. Rg3 {[%clk 0:01:15.5]}
26... Qf5 {[%clk 0:01:25.4]} 27. Rxg7+ {[%clk 0:01:12]} 27... Kf8 {[%clk
0:01:24.2]} 28. Qb4+ {[%clk 0:01:09.6]} 1-0

[Event "Late-Titled-Tuesday-Blitz-June-18-2024"]
[Site "Chess.com"]
[Date "2024.06.18"]
[Round "4"]
[White "AlexOstrovskiy"]
[Black "Perecke"]
[Result "1-0"]
[WhiteElo "2724"]
[BlackElo "2538"]
[TimeControl "180+1"]
[EndTime "14:39:16 PDT"]
[Termination "AlexOstrovskiy won by resignation"]

1. e4 {[%clk 0:03:00.9]} 1... e5 {[%clk 0:02:59.6]} 2. Nf3 {[%clk 0:03:00.5]}
2... Nc6 {[%clk 0:02:57.4]} 3. Bc4 {[%clk 0:03:00.5]} 3... Bc5 {[%clk
0:02:56.6]} 4. c3 {[%clk 0:03:00]} 4... Nf6 {[%clk 0:02:55.7]} 5. d4 {[%clk
0:02:59.5]} 5... exd4 {[%clk 0:02:56]} 6. cxd4 {[%clk 0:03:00.4]} 6... Bb4+
{[%clk 0:02:56.3]} 7. Nbd2 {[%clk 0:03:00.6]} 7... Nxe4 {[%clk 0:02:53.5]} 8. d5
{[%clk 0:02:59.5]} 8... Ne7 {[%clk 0:02:36.9]} 9. O-O {[%clk 0:02:57.2]} 9...
Nxd2 {[%clk 0:02:36.8]} 10. Nxd2 {[%clk 0:02:57.2]} 10... d6 {[%clk 0:02:36.6]}
11. Qa4+ {[%clk 0:02:56.5]} 11... Bd7 {[%clk 0:02:33.4]} 12. Qxb4 {[%clk
0:02:55]} 12... O-O {[%clk 0:02:34.1]} 13. b3 {[%clk 0:02:51.7]} 13... b6 {[%clk
0:02:26.4]} 14. a4 {[%clk 0:02:44.3]} 14... a6 {[%clk 0:02:26.3]} 15. Bb2 {[%clk
0:02:36.3]} 15... b5 {[%clk 0:02:21.7]} 16. axb5 {[%clk 0:02:37.2]} 16... axb5
{[%clk 0:02:22.4]} 17. Bxb5 {[%clk 0:02:19]} 17... Rxa1 {[%clk 0:02:11.3]} 18.
Bxa1 {[%clk 0:02:16.7]} 18... Nxd5 {[%clk 0:02:02.2]} 19. Qd4 {[%clk 0:02:14]}
19... Nf6 {[%clk 0:02:02.3]} 20. Bxd7 {[%clk 0:02:13.3]} 20... Qxd7 {[%clk
0:02:03.2]} 21. Ne4 {[%clk 0:02:13.4]} 21... Qe6 {[%clk 0:01:54.1]} 22. Nxf6+
{[%clk 0:02:11.9]} 22... Qxf6 {[%clk 0:01:54.7]} 23. Qxf6 {[%clk 0:02:11.8]}
23... gxf6 {[%clk 0:01:55.6]} 24. Bxf6 {[%clk 0:02:11.9]} 24... Rb8 {[%clk
0:01:56.3]} 25. Rb1 {[%clk 0:02:11.6]} 25... c5 {[%clk 0:01:56.7]} 26. Kf1
{[%clk 0:02:04.5]} 26... d5 {[%clk 0:01:48.2]} 27. Rc1 {[%clk 0:02:01.6]} 27...
Rb5 {[%clk 0:01:34.3]} 28. Be7 {[%clk 0:01:57.1]} 28... Rxb3 {[%clk 0:01:33.7]}
29. Bxc5 {[%clk 0:01:57]} 29... Kg7 {[%clk 0:01:31.7]} 30. Bd4+ {[%clk
0:01:55.5]} 30... Kg6 {[%clk 0:01:30.6]} 31. Rc3 {[%clk 0:01:55.8]} 31... Rb7
{[%clk 0:01:24.8]} 32. Ke2 {[%clk 0:01:54]} 32... Kf5 {[%clk 0:01:24.1]} 33. Kf3
{[%clk 0:01:52.9]} 33... Rd7 {[%clk 0:01:17.3]} 34. g4+ {[%clk 0:01:52.5]} 34...
Kg6 {[%clk 0:01:15.2]} 35. Rc6+ {[%clk 0:01:51.7]} 35... Kg5 {[%clk 0:01:06.7]}
36. Kg3 {[%clk 0:01:47.9]} 36... f6 {[%clk 0:00:57.2]} 37. Rxf6 {[%clk
0:01:45.1]} 1-0

[Event "Late-Titled-Tuesday-Blitz-June-18-2024"]
[Site "Chess.com"]
[Date "2024.06.18"]
[Round "4"]
[White "karinachess1"]
[Black "sudtirolese06"]
[Result "1-0"]
[WhiteElo "2659"]
[BlackElo "2467"]
[TimeControl "180+1"]
[EndTime "14:39:16 PDT"]
[Termination "karinachess1 won by checkmate"]

1. d4 {[%clk 0:03:00.9]} 1... g6 {[%clk 0:02:59.2]} 2. Nf3 {[%clk 0:03:00.7]}
2... Bg7 {[%clk 0:02:59.6]} 3. g3 {[%clk 0:03:01.4]} 3... d6 {[%clk 0:02:59.9]}
4. Bg2 {[%clk 0:03:02]} 4... Nf6 {[%clk 0:03:00.3]} 5. O-O {[%clk 0:03:02.6]}
5... O-O {[%clk 0:03:00.5]} 6. b3 {[%clk 0:03:03.2]} 6... Ne4 {[%clk 0:02:53.1]}
7. Bb2 {[%clk 0:03:03.3]} 7... Bf5 {[%clk 0:02:47.9]} 8. c4 {[%clk 0:03:03.6]}
8... Nd7 {[%clk 0:02:46.6]} 9. Nh4 {[%clk 0:03:03.7]} 9... c6 {[%clk 0:02:45.5]}
10. Nxf5 {[%clk 0:03:02.2]} 10... gxf5 {[%clk 0:02:45.7]} 11. f3 {[%clk
0:02:54.8]} 11... Nef6 {[%clk 0:02:44.9]} 12. e4 {[%clk 0:02:55.5]} 12... fxe4
{[%clk 0:02:40.1]} 13. fxe4 {[%clk 0:02:56.4]} 13... e5 {[%clk 0:02:39]} 14. d5
{[%clk 0:02:54.2]} 14... c5 {[%clk 0:02:37.9]} 15. Bc1 {[%clk 0:02:53.1]} 15...
Ne8 {[%clk 0:02:33.1]} 16. Qh5 {[%clk 0:02:49.1]} 16... Ndf6 {[%clk 0:02:28.2]}
17. Qh4 {[%clk 0:02:48.9]} 17... Qe7 {[%clk 0:02:25]} 18. Bg5 {[%clk 0:02:47.4]}
18... Qd7 {[%clk 0:02:10.8]} 19. Bh3 {[%clk 0:02:42]} 19... Qc7 {[%clk
0:02:07.8]} 20. Bxf6 {[%clk 0:02:26.4]} 20... Nxf6 {[%clk 0:02:08.7]} 21. Rxf6
{[%clk 0:02:26.2]} 21... Bxf6 {[%clk 0:02:09.6]} 22. Qxf6 {[%clk 0:02:26.9]}
22... Qa5 {[%clk 0:02:04.1]} 23. Qg5+ {[%clk 0:02:08.3]} 23... Kh8 {[%clk
0:02:03.6]} 24. Nd2 {[%clk 0:02:09]} 24... f6 {[%clk 0:02:02.4]} 25. Qe3 {[%clk
0:02:07.7]} 25... b5 {[%clk 0:02:00]} 26. Bf5 {[%clk 0:02:01.4]} 26... a6 {[%clk
0:01:58]} 27. Rf1 {[%clk 0:01:54.7]} 27... Qc7 {[%clk 0:01:56.9]} 28. Qh6 {[%clk
0:01:49.2]} 28... Qg7 {[%clk 0:01:54.6]} 29. Qh5 {[%clk 0:01:49.6]} 29... Rab8
{[%clk 0:01:48.8]} 30. Rc1 {[%clk 0:01:45.4]} 30... Rb7 {[%clk 0:01:48.2]} 31.
Nf3 {[%clk 0:01:43.8]} 31... Qe7 {[%clk 0:01:38.7]} 32. Nh4 {[%clk 0:01:43.6]}
32... Rg8 {[%clk 0:01:35.8]} 33. Ng6+ {[%clk 0:01:40.3]} 33... Rxg6 {[%clk
0:01:35.4]} 34. Bxg6 {[%clk 0:01:41.2]} 34... bxc4 {[%clk 0:01:35.1]} 35. Rxc4
{[%clk 0:01:40.5]} 35... Qf8 {[%clk 0:01:09.1]} 36. Bf5 {[%clk 0:01:37.8]} 36...
Rg7 {[%clk 0:01:08.6]} 37. Ra4 {[%clk 0:01:36.3]} 37... Rg5 {[%clk 0:01:08]} 38.
Qxh7# {[%clk 0:01:35.9]} 1-0